[Event "*** Titled Tuesday Blitz"]
[Site "Chess.com"]
[Date "2019.05.07"]
[Round "4"]
[White "BvsN"]
[Black "Eliwood44"]
[Result "1-0"]
[WhiteElo "2291"]
[BlackElo "2230"]
[TimeControl "180+2"]
[EndTime "13:54:19 PDT"]
[Termination "BvsN won by checkmate"]

1. d4 {[%clk 0:03:01.9]} 1... Nf6 {[%clk 0:03:00]} 2. c4 {[%clk 0:03:02.4]} 2...
e6 {[%clk 0:02:58.5]} 3. Nc3 {[%clk 0:03:03.6]} 3... d5 {[%clk 0:02:56]} 4. cxd5
{[%clk 0:03:04]} 4... exd5 {[%clk 0:02:57.9]} 5. Bg5 {[%clk 0:03:05.1]} 5...
Nbd7 {[%clk 0:02:57.4]} 6. e3 {[%clk 0:03:05.9]} 6... c6 {[%clk 0:02:58]} 7. Bd3
{[%clk 0:03:07.1]} 7... h6 {[%clk 0:02:57.8]} 8. Bh4 {[%clk 0:03:07.4]} 8... Be7
{[%clk 0:02:59.1]} 9. Nge2 {[%clk 0:03:08.2]} 9... Nh5 {[%clk 0:02:58.4]} 10.
Bxe7 {[%clk 0:03:08.5]} 10... Qxe7 {[%clk 0:03:00.3]} 11. Qc2 {[%clk 0:03:09.6]}
11... Nb6 {[%clk 0:02:59.5]} 12. h3 {[%clk 0:03:08.6]} 12... Bd7 {[%clk
0:02:54.6]} 13. O-O-O {[%clk 0:03:03.8]} 13... O-O-O {[%clk 0:02:53.9]} 14. Kb1
{[%clk 0:03:05.1]} 14... Kb8 {[%clk 0:02:55]} 15. Nc1 {[%clk 0:03:06.1]} 15...
Rc8 {[%clk 0:02:54.4]} 16. Nb3 {[%clk 0:03:07]} 16... Nf6 {[%clk 0:02:54.2]} 17.
Nc5 {[%clk 0:03:05.5]} 17... Be8 {[%clk 0:02:51.4]} 18. Qb3 {[%clk 0:03:00.3]}
18... Nfd7 {[%clk 0:02:49.8]} 19. N3a4 {[%clk 0:03:00.7]} 19... Nxc5 {[%clk
0:02:50]} 20. Nxc5 {[%clk 0:02:59.8]} 20... Ka8 {[%clk 0:02:45]} 21. a4 {[%clk
0:02:41.2]} 21... Rb8 {[%clk 0:02:35.4]} 22. a5 {[%clk 0:02:37.4]} 22... Nd7
{[%clk 0:02:35.5]} 23. Na4 {[%clk 0:02:30.9]} 23... Qd8 {[%clk 0:02:30.3]} 24.
Qb4 {[%clk 0:02:27.9]} 24... g6 {[%clk 0:02:26.9]} 25. Kc2 {[%clk 0:02:21.8]}
25... Rc8 {[%clk 0:02:22.6]} 26. Kd2 {[%clk 0:02:19.1]} 26... Qh4 {[%clk
0:02:04.3]} 27. g3 {[%clk 0:02:10.5]} 27... Qf6 {[%clk 0:02:02.2]} 28. Ke2
{[%clk 0:02:08.8]} 28... Qd8 {[%clk 0:01:39.1]} 29. Ra1 {[%clk 0:02:02.7]} 29...
f5 {[%clk 0:01:38]} 30. Nb6+ {[%clk 0:01:44.2]} 30... Nxb6 {[%clk 0:01:32.3]}
31. axb6 {[%clk 0:01:43.6]} 31... a6 {[%clk 0:01:26.4]} 32. Bxa6 {[%clk
0:01:32.1]} 32... bxa6 {[%clk 0:01:27.2]} 33. b7+ {[%clk 0:01:11.3]} 33... Ka7
{[%clk 0:01:26.1]} 34. b8=Q+ {[%clk 0:00:46]} 34... Rxb8 {[%clk 0:01:25.4]} 35.
Rxa6+ {[%clk 0:00:46.6]} 35... Kxa6 {[%clk 0:01:25.7]} 36. Ra1+ {[%clk
0:00:47.5]} 36... Qa5 {[%clk 0:01:25.8]} 37. Rxa5# {[%clk 0:00:48.6]} 1-0

[Event "*** Titled Tuesday Blitz"]
[Site "Chess.com"]
[Date "2019.05.07"]
[Round "4"]
[White "nitpicker"]
[Black "2165149677570"]
[Result "0-1"]
[WhiteElo "2241"]
[BlackElo "2349"]
[TimeControl "180+2"]
[EndTime "13:54:39 PDT"]
[Termination "2165149677570 won by resignation"]

1. d4 {[%clk 0:03:01.9]} 1... Nf6 {[%clk 0:02:59.8]} 2. c4 {[%clk 0:03:02.3]}
2... e6 {[%clk 0:03:00.2]} 3. g3 {[%clk 0:03:02.7]} 3... c5 {[%clk 0:03:00.7]}
4. d5 {[%clk 0:03:02.7]} 4... exd5 {[%clk 0:03:02.6]} 5. cxd5 {[%clk 0:03:03.7]}
5... b5 {[%clk 0:03:04.2]} 6. Bg2 {[%clk 0:02:57.4]} 6... d6 {[%clk 0:03:05.2]}
7. Nd2 {[%clk 0:02:58.2]} 7... g6 {[%clk 0:03:04.2]} 8. a4 {[%clk 0:02:57.2]}
8... b4 {[%clk 0:03:04.7]} 9. e4 {[%clk 0:02:56.1]} 9... Bg7 {[%clk 0:03:04.5]}
10. Ne2 {[%clk 0:02:49.5]} 10... O-O {[%clk 0:03:05.5]} 11. O-O {[%clk
0:02:47.4]} 11... a5 {[%clk 0:03:07.1]} 12. Rb1 {[%clk 0:02:40.9]} 12... Ba6
{[%clk 0:03:06]} 13. b3 {[%clk 0:02:42]} 13... Bd3 {[%clk 0:03:03.9]} 14. Rb2
{[%clk 0:02:39.4]} 14... Re8 {[%clk 0:02:47.5]} 15. f3 {[%clk 0:02:36.3]} 15...
Nxd5 {[%clk 0:02:44]} 16. Nc4 {[%clk 0:02:12.7]} 16... Bxe2 {[%clk 0:02:14]} 17.
Qxe2 {[%clk 0:02:12.4]} 17... Bd4+ {[%clk 0:02:10.8]} 18. Kh1 {[%clk 0:02:10.3]}
18... Nc3 {[%clk 0:02:04.5]} 19. Qd3 {[%clk 0:02:09.9]} 19... Nc6 {[%clk
0:01:56.8]} 20. f4 {[%clk 0:02:06.7]} 20... Rc8 {[%clk 0:01:50]} 21. Be3 {[%clk
0:02:01.7]} 21... Bxe3 {[%clk 0:01:46.4]} 22. Nxe3 {[%clk 0:01:55.6]} 22... Nd4
{[%clk 0:01:46.8]} 23. f5 {[%clk 0:01:50.2]} 23... Qe7 {[%clk 0:01:41.4]} 24. f6
{[%clk 0:01:39.8]} 24... Qe6 {[%clk 0:01:39.3]} 25. Rf4 {[%clk 0:01:21.2]} 25...
Nxb3 {[%clk 0:00:58.9]} 26. Rh4 {[%clk 0:01:11.7]} 26... c4 {[%clk 0:00:36.2]}
27. Bh3 {[%clk 0:01:07.6]} 27... cxd3 {[%clk 0:00:25.8]} 28. Bxe6 {[%clk
0:01:08.5]} 28... Rxe6 {[%clk 0:00:27.3]} 29. Rxb3 {[%clk 0:01:08.5]} 29... d2
{[%clk 0:00:26.6]} 0-1

[Event "*** Titled Tuesday Blitz"]
[Site "Chess.com"]
[Date "2019.05.07"]
[Round "4"]
[White "j_coca"]
[Black "Jenia84"]
[Result "0-1"]
[WhiteElo "2073"]
[BlackElo "2250"]
[TimeControl "180+2"]
[EndTime "13:54:48 PDT"]
[Termination "Jenia84 won by resignation"]

1. f4 {[%clk 0:03:01.9]} 1... g6 {[%clk 0:02:59.6]} 2. Nf3 {[%clk 0:02:49.1]}
2... Bg7 {[%clk 0:02:59.5]} 3. e3 {[%clk 0:02:37.3]} 3... b6 {[%clk 0:03:00]} 4.
d4 {[%clk 0:02:38.5]} 4... Bb7 {[%clk 0:03:00.9]} 5. Bd3 {[%clk 0:02:40]} 5...
f5 {[%clk 0:02:55.8]} 6. O-O {[%clk 0:02:39.4]} 6... Nf6 {[%clk 0:02:57.3]} 7.
c3 {[%clk 0:02:40.6]} 7... O-O {[%clk 0:02:54.9]} 8. Nbd2 {[%clk 0:02:41.8]}
8... d6 {[%clk 0:02:56]} 9. Ng5 {[%clk 0:02:42.1]} 9... Qd7 {[%clk 0:02:50.9]}
10. Qb3+ {[%clk 0:02:33.9]} 10... Bd5 {[%clk 0:02:48.1]} 11. c4 {[%clk
0:02:34.6]} 11... Bb7 {[%clk 0:02:47.2]} 12. d5 {[%clk 0:02:35.4]} 12... Na6
{[%clk 0:02:40.8]} 13. Qc2 {[%clk 0:02:25.2]} 13... Nc5 {[%clk 0:02:40.9]} 14.
b4 {[%clk 0:02:20.2]} 14... Nxd3 {[%clk 0:02:41.3]} 15. Rb1 {[%clk 0:02:13.6]}
15... Nxc1 {[%clk 0:02:38.6]} 16. Rbxc1 {[%clk 0:02:11.4]} 16... c6 {[%clk
0:02:26.9]} 17. Ne6 {[%clk 0:02:09]} 17... Rfc8 {[%clk 0:02:24.3]} 18. Nxg7
{[%clk 0:02:09.5]} 18... Kxg7 {[%clk 0:02:24.8]} 19. dxc6 {[%clk 0:02:10.8]}
19... Bxc6 {[%clk 0:02:25.3]} 20. Rfe1 {[%clk 0:02:08.6]} 20... Qb7 {[%clk
0:02:25.3]} 21. Nb3 {[%clk 0:02:08.3]} 21... a5 {[%clk 0:02:20.4]} 22. bxa5
{[%clk 0:02:04.3]} 22... bxa5 {[%clk 0:02:20.2]} 23. Nd4 {[%clk 0:02:05.7]}
23... Be4 {[%clk 0:02:14]} 24. Qf2 {[%clk 0:02:01.9]} 24... e5 {[%clk
0:02:13.1]} 25. fxe5 {[%clk 0:02:00.4]} 25... dxe5 {[%clk 0:02:13.2]} 26. Ne6+
{[%clk 0:02:01.7]} 26... Kg8 {[%clk 0:02:13.9]} 27. Ng5 {[%clk 0:02:03]} 27...
Ng4 {[%clk 0:02:06.4]} 28. Qg3 {[%clk 0:01:54.8]} 28... Bd3 {[%clk 0:01:40.8]}
29. h3 {[%clk 0:01:50.5]} 29... Nh6 {[%clk 0:01:40.9]} 30. Qxe5 {[%clk
0:01:46.9]} 30... Nf7 {[%clk 0:01:37.4]} 31. Nxf7 {[%clk 0:01:46.6]} 31... Qxf7
{[%clk 0:01:37.4]} 32. c5 {[%clk 0:01:46.4]} 32... Be4 {[%clk 0:01:35.6]} 33. a3
{[%clk 0:01:42.3]} 33... Qd5 {[%clk 0:01:34.8]} 34. Qxd5+ {[%clk 0:01:38.4]}
34... Bxd5 {[%clk 0:01:35.3]} 35. Red1 {[%clk 0:01:39.3]} 35... Be4 {[%clk
0:01:34.1]} 36. Rd6 {[%clk 0:01:39.4]} 36... Ra7 {[%clk 0:01:32]} 37. g4 {[%clk
0:01:36.7]} 37... Rac7 {[%clk 0:01:31.2]} 38. gxf5 {[%clk 0:01:36]} 38... Bxf5
{[%clk 0:01:32.2]} 39. Rd5 {[%clk 0:01:21.3]} 39... Bxh3 {[%clk 0:01:31.8]} 40.
e4 {[%clk 0:01:20.8]} 40... Bd7 {[%clk 0:01:25.4]} 41. Kf2 {[%clk 0:01:15.2]}
41... Bc6 {[%clk 0:01:26]} 42. Re5 {[%clk 0:01:16.4]} 42... Re8 {[%clk
0:01:25.1]} 43. Rxe8+ {[%clk 0:01:13]} 43... Bxe8 {[%clk 0:01:25.3]} 0-1

[Event "*** Titled Tuesday Blitz"]
[Site "Chess.com"]
[Date "2019.05.07"]
[Round "4"]
[White "Sutormin_DA"]
[Black "Koksal06"]
[Result "1-0"]
[WhiteElo "2536"]
[BlackElo "2465"]
[TimeControl "180+2"]
[EndTime "13:55:01 PDT"]
[Termination "Sutormin_DA won by resignation"]

1. e4 {[%clk 0:03:01.9]} 1... e5 {[%clk 0:03:00.8]} 2. Nf3 {[%clk 0:03:02.3]}
2... Nc6 {[%clk 0:03:02.4]} 3. Bb5 {[%clk 0:03:03.9]} 3... a6 {[%clk 0:03:03.8]}
4. Ba4 {[%clk 0:03:04.8]} 4... Nf6 {[%clk 0:03:05.3]} 5. O-O {[%clk 0:03:06.3]}
5... Be7 {[%clk 0:03:06.8]} 6. Re1 {[%clk 0:03:07.2]} 6... b5 {[%clk 0:03:08.3]}
7. Bb3 {[%clk 0:03:08]} 7... d6 {[%clk 0:03:09.9]} 8. c3 {[%clk 0:03:07.5]} 8...
O-O {[%clk 0:03:11.4]} 9. h3 {[%clk 0:03:07.4]} 9... Na5 {[%clk 0:03:13]} 10.
Bc2 {[%clk 0:03:07.9]} 10... c5 {[%clk 0:03:14.9]} 11. d4 {[%clk 0:03:07.1]}
11... Nd7 {[%clk 0:03:16.4]} 12. dxe5 {[%clk 0:03:01.3]} 12... dxe5 {[%clk
0:03:07]} 13. Nbd2 {[%clk 0:03:01.2]} 13... Qc7 {[%clk 0:03:02.9]} 14. Nf1
{[%clk 0:03:00.3]} 14... c4 {[%clk 0:02:49.1]} 15. Ne3 {[%clk 0:02:56.7]} 15...
Nb6 {[%clk 0:02:47.4]} 16. Nd5 {[%clk 0:02:57.6]} 16... Nxd5 {[%clk 0:02:43.9]}
17. exd5 {[%clk 0:02:59.5]} 17... Bd6 {[%clk 0:02:29.9]} 18. b4 {[%clk 0:02:46]}
18... Nb7 {[%clk 0:02:19.4]} 19. a4 {[%clk 0:02:46.1]} 19... Bd7 {[%clk
0:02:20.6]} 20. Ng5 {[%clk 0:02:34.1]} 20... h6 {[%clk 0:01:57.6]} 21. Qh5
{[%clk 0:02:29.3]} 21... f5 {[%clk 0:01:40.6]} 22. Ne6 {[%clk 0:01:36.3]} 22...
Bxe6 {[%clk 0:01:41.5]} 23. dxe6 {[%clk 0:01:38.2]} 23... e4 {[%clk 0:01:43]}
24. axb5 {[%clk 0:01:34.4]} 24... axb5 {[%clk 0:01:42.5]} 25. Rxa8 {[%clk
0:01:36.3]} 25... Rxa8 {[%clk 0:01:43.9]} 26. Qg6 {[%clk 0:01:38]} 26... Rf8
{[%clk 0:01:40.7]} 27. g4 {[%clk 0:01:17.6]} 27... Bh2+ {[%clk 0:01:04.4]} 28.
Kg2 {[%clk 0:01:14.4]} 28... Be5 {[%clk 0:01:05.5]} 29. gxf5 {[%clk 0:01:10.1]}
29... Bxc3 {[%clk 0:01:06.6]} 30. Rxe4 {[%clk 0:01:02.6]} 30... Nd6 {[%clk
0:01:06.3]} 31. e7 {[%clk 0:00:55]} 31... Re8 {[%clk 0:01:00.1]} 32. Bf4 {[%clk
0:00:50.7]} 32... Bxb4 {[%clk 0:00:47.7]} 33. Bxd6 {[%clk 0:00:50.4]} 33... Bxd6
{[%clk 0:00:48.2]} 34. Qxe8+ {[%clk 0:00:51.5]} 1-0

[Event "*** Titled Tuesday Blitz"]
[Site "Chess.com"]
[Date "2019.05.07"]
[Round "4"]
[White "2nd_life"]
[Black "FedaMaster"]
[Result "1-0"]
[WhiteElo "2430"]
[BlackElo "2307"]
[TimeControl "180+2"]
[EndTime "13:55:20 PDT"]
[Termination "2nd_life won by resignation"]

1. e4 {[%clk 0:03:01.9]} 1... d5 {[%clk 0:03:00.4]} 2. exd5 {[%clk 0:03:02.7]}
2... Qxd5 {[%clk 0:03:02.3]} 3. Nc3 {[%clk 0:03:03.2]} 3... Qd6 {[%clk
0:03:03.8]} 4. Nf3 {[%clk 0:02:59.7]} 4... Nf6 {[%clk 0:03:05.2]} 5. g3 {[%clk
0:02:59.3]} 5... Bg4 {[%clk 0:03:05.4]} 6. Bg2 {[%clk 0:02:57.5]} 6... Nc6
{[%clk 0:03:06.5]} 7. h3 {[%clk 0:02:51.8]} 7... Bh5 {[%clk 0:03:07.3]} 8. g4
{[%clk 0:02:42.8]} 8... Bg6 {[%clk 0:03:08.2]} 9. d3 {[%clk 0:02:42.7]} 9...
O-O-O {[%clk 0:03:08.6]} 10. Be3 {[%clk 0:02:33.6]} 10... a6 {[%clk 0:03:02]}
11. Nh4 {[%clk 0:02:29.5]} 11... e5 {[%clk 0:02:46.9]} 12. Nxg6 {[%clk
0:02:21.8]} 12... fxg6 {[%clk 0:02:07.7]} 13. Ne4 {[%clk 0:02:05.8]} 13... Qb4+
{[%clk 0:02:06.2]} 14. Qd2 {[%clk 0:02:02.6]} 14... Qxb2 {[%clk 0:01:53]} 15.
O-O {[%clk 0:02:02.4]} 15... Bb4 {[%clk 0:01:49.9]} 16. Qe2 {[%clk 0:01:44.8]}
16... Rhf8 {[%clk 0:01:45.4]} 17. Rab1 {[%clk 0:01:41.1]} 17... Qa3 {[%clk
0:01:40.1]} 18. Rb3 {[%clk 0:01:24.6]} 18... Qxa2 {[%clk 0:01:38.5]} 19. Nxf6
{[%clk 0:01:19.3]} 19... Rxf6 {[%clk 0:01:29]} 20. Bxc6 {[%clk 0:01:19.5]} 20...
Rxc6 {[%clk 0:01:28.4]} 21. Rxb4 {[%clk 0:01:20.2]} 21... Qxc2 {[%clk
0:01:27.7]} 22. Qf3 {[%clk 0:01:07]} 22... Qxd3 {[%clk 0:01:19.9]} 23. Rfb1
{[%clk 0:01:02.3]} 23... e4 {[%clk 0:01:18.7]} 24. Qf7 {[%clk 0:00:42.4]} 24...
b5 {[%clk 0:01:07.2]} 25. Qxg7 {[%clk 0:00:35.8]} 25... h5 {[%clk 0:01:08.3]}
26. g5 {[%clk 0:00:33.6]} 26... Rd5 {[%clk 0:01:04.4]} 27. R4b2 {[%clk 0:00:26]}
27... a5 {[%clk 0:01:00.7]} 28. Ra1 {[%clk 0:00:23]} 28... b4 {[%clk 0:00:53.5]}
29. Rd2 {[%clk 0:00:21.5]} 29... Qc4 {[%clk 0:00:54.8]} 30. Qg8+ {[%clk
0:00:21.9]} 30... Kb7 {[%clk 0:00:52.6]} 31. Qxd5 {[%clk 0:00:22.7]} 31... Qxd5
{[%clk 0:00:52.6]} 32. Rxd5 {[%clk 0:00:23.9]} 32... Rc2 {[%clk 0:00:50.6]} 33.
Rdxa5 {[%clk 0:00:24.4]} 33... c6 {[%clk 0:00:51.7]} 34. Ra7+ {[%clk 0:00:24.5]}
34... Kb8 {[%clk 0:00:53.2]} 35. Bf4+ {[%clk 0:00:24.8]} 35... Kc8 {[%clk
0:00:53.8]} 36. Rc7+ {[%clk 0:00:25.8]} 36... Kb8 {[%clk 0:00:54.7]} 37. Rh7+
{[%clk 0:00:26.8]} 1-0

[Event "*** Titled Tuesday Blitz"]
[Site "Chess.com"]
[Date "2019.05.07"]
[Round "4"]
[White "Saitama_Hero"]
[Black "quesfr"]
[Result "1-0"]
[WhiteElo "2220"]
[BlackElo "2181"]
[TimeControl "180+2"]
[EndTime "13:55:28 PDT"]
[Termination "Saitama_Hero won by resignation"]

1. Nf3 {[%clk 0:03:01.9]} 1... d5 {[%clk 0:02:57.8]} 2. c4 {[%clk 0:03:03.8]}
2... e6 {[%clk 0:02:57.5]} 3. g3 {[%clk 0:03:02.1]} 3... g6 {[%clk 0:02:58.2]}
4. Bg2 {[%clk 0:03:03.7]} 4... Bg7 {[%clk 0:02:59.5]} 5. O-O {[%clk 0:03:04.9]}
5... Ne7 {[%clk 0:02:58.8]} 6. d4 {[%clk 0:02:50.3]} 6... Nbc6 {[%clk
0:02:59.6]} 7. e3 {[%clk 0:02:28.1]} 7... O-O {[%clk 0:02:55.3]} 8. Nbd2 {[%clk
0:02:23.5]} 8... b6 {[%clk 0:02:37.3]} 9. a3 {[%clk 0:02:23.2]} 9... a5 {[%clk
0:02:38]} 10. b3 {[%clk 0:02:24.8]} 10... Ba6 {[%clk 0:02:37]} 11. Bb2 {[%clk
0:02:22.4]} 11... a4 {[%clk 0:02:30.1]} 12. Re1 {[%clk 0:02:21.5]} 12... axb3
{[%clk 0:02:26.1]} 13. cxd5 {[%clk 0:02:14.9]} 13... exd5 {[%clk 0:02:23.2]} 14.
Nxb3 {[%clk 0:02:15.2]} 14... Bc4 {[%clk 0:02:15.5]} 15. Nfd2 {[%clk 0:02:14.8]}
15... Ba6 {[%clk 0:01:47.2]} 16. Qc2 {[%clk 0:02:14.6]} 16... Bc8 {[%clk
0:01:28.1]} 17. Rec1 {[%clk 0:02:10.1]} 17... Bf5 {[%clk 0:01:27.5]} 18. Qc3
{[%clk 0:02:06.9]} 18... Qd7 {[%clk 0:01:12.5]} 19. a4 {[%clk 0:02:06.4]} 19...
Rfb8 {[%clk 0:00:50.7]} 20. Bf1 {[%clk 0:01:59.3]} 20... Qc8 {[%clk 0:00:20.2]}
21. Bb5 {[%clk 0:01:57.7]} 21... Bd7 {[%clk 0:00:21.2]} 22. Ba3 {[%clk
0:01:55.1]} 22... Ra7 {[%clk 0:00:21.3]} 23. Bxe7 {[%clk 0:01:54.4]} 23... Nxe7
{[%clk 0:00:21.9]} 24. Bxd7 {[%clk 0:01:41.4]} 24... Qxd7 {[%clk 0:00:22.6]} 25.
a5 {[%clk 0:01:43.3]} 25... Rba8 {[%clk 0:00:18.5]} 26. axb6 {[%clk 0:01:40.4]}
26... Rxa1 {[%clk 0:00:17.9]} 27. Rxa1 {[%clk 0:01:40.9]} 27... Rxa1+ {[%clk
0:00:18.8]} 28. Qxa1 {[%clk 0:01:42.5]} 28... cxb6 {[%clk 0:00:20]} 29. Qa8+
{[%clk 0:01:41.7]} 29... Bf8 {[%clk 0:00:20.4]} 30. Qb8 {[%clk 0:01:38]} 30...
Qb5 {[%clk 0:00:17.2]} 31. Nc5 {[%clk 0:01:30.2]} 31... Kg7 {[%clk 0:00:15]} 32.
Nf3 {[%clk 0:01:19.2]} 32... Nc6 {[%clk 0:00:15.7]} 33. Qb7 {[%clk 0:01:16.3]}
33... Bxc5 {[%clk 0:00:15.4]} 34. dxc5 {[%clk 0:01:16]} 34... Qxc5 {[%clk
0:00:16.3]} 35. Ng5 {[%clk 0:01:16.3]} 35... Ne7 {[%clk 0:00:12.8]} 36. Qb8
{[%clk 0:01:06.3]} 36... f6 {[%clk 0:00:12.9]} 37. Ne6+ {[%clk 0:01:05.3]} 1-0

[Event "*** Titled Tuesday Blitz"]
[Site "Chess.com"]
[Date "2019.05.07"]
[Round "4"]
[White "c63_amg"]
[Black "Aryangholami"]
[Result "1-0"]
[WhiteElo "2670"]
[BlackElo "2654"]
[TimeControl "180+2"]
[EndTime "13:55:29 PDT"]
[Termination "c63_amg won by resignation"]

1. e4 {[%clk 0:03:01.9]} 1... c5 {[%clk 0:02:58.7]} 2. Nf3 {[%clk 0:03:03.2]}
2... e6 {[%clk 0:02:59.2]} 3. d4 {[%clk 0:03:03.8]} 3... cxd4 {[%clk 0:03:01.1]}
4. Nxd4 {[%clk 0:03:05.5]} 4... a6 {[%clk 0:03:02.8]} 5. Bd3 {[%clk 0:03:05.9]}
5... Qc7 {[%clk 0:03:02.6]} 6. Nc3 {[%clk 0:02:54.7]} 6... Nf6 {[%clk
0:03:02.7]} 7. Qe2 {[%clk 0:02:55.6]} 7... Nc6 {[%clk 0:03:02.1]} 8. Nxc6 {[%clk
0:02:54.3]} 8... dxc6 {[%clk 0:03:03.9]} 9. e5 {[%clk 0:02:52]} 9... Nd7 {[%clk
0:03:04.1]} 10. Bf4 {[%clk 0:02:33.4]} 10... Bb4 {[%clk 0:03:00.3]} 11. O-O
{[%clk 0:02:32.9]} 11... Nc5 {[%clk 0:02:57.4]} 12. Ne4 {[%clk 0:02:24]} 12...
Nxd3 {[%clk 0:02:50.8]} 13. Qxd3 {[%clk 0:02:16.3]} 13... O-O {[%clk 0:02:43.8]}
14. Nf6+ {[%clk 0:02:04.8]} 14... gxf6 {[%clk 0:02:39]} 15. Qg3+ {[%clk
0:02:06.3]} 15... Kh8 {[%clk 0:02:38.9]} 16. exf6 {[%clk 0:02:07.9]} 16... Rg8
{[%clk 0:02:27.1]} 17. Bxc7 {[%clk 0:01:57.8]} 17... Rxg3 {[%clk 0:02:27.9]} 18.
hxg3 {[%clk 0:01:58.3]} 18... h6 {[%clk 0:02:14]} 19. Rad1 {[%clk 0:01:59.4]}
19... Kh7 {[%clk 0:02:14.5]} 20. Rd8 {[%clk 0:01:44.5]} 20... Kg6 {[%clk
0:02:11.8]} 21. Be5 {[%clk 0:01:39.7]} 21... Kf5 {[%clk 0:02:11.4]} 22. f4
{[%clk 0:01:40.7]} 22... Ba5 {[%clk 0:02:08.3]} 23. Rf8 {[%clk 0:01:39.2]} 23...
Kg6 {[%clk 0:02:00.4]} 24. Rd1 {[%clk 0:01:35.1]} 24... b5 {[%clk 0:01:57.7]}
25. g4 {[%clk 0:01:27.1]} 25... Bb7 {[%clk 0:01:43.1]} 26. Rxa8 {[%clk
0:01:27.6]} 26... Bxa8 {[%clk 0:01:44.4]} 27. Rd7 {[%clk 0:01:29.1]} 27... c5
{[%clk 0:01:45.2]} 28. Ra7 {[%clk 0:01:28.3]} 28... Be4 {[%clk 0:01:42.2]} 29.
Rxa6 {[%clk 0:01:29.5]} 29... Bd2 {[%clk 0:01:41.6]} 30. Kf2 {[%clk 0:01:25.4]}
30... Bxc2 {[%clk 0:01:39.9]} 31. Ra8 {[%clk 0:01:23.8]} 31... Kh7 {[%clk
0:01:39]} 32. Rf8 {[%clk 0:01:19.1]} 32... Bg6 {[%clk 0:01:39]} 33. Ke2 {[%clk
0:01:07.7]} 33... Bc1 {[%clk 0:01:32.9]} 34. Rc8 {[%clk 0:01:00.3]} 34... c4
{[%clk 0:01:33.5]} 35. a4 {[%clk 0:01:01.9]} 35... Bd3+ {[%clk 0:01:32.5]} 36.
Kd1 {[%clk 0:01:03.2]} 36... Be3 {[%clk 0:01:28.6]} 37. axb5 {[%clk 0:01:04.1]}
37... h5 {[%clk 0:01:28.7]} 38. gxh5 {[%clk 0:01:04]} 38... Be4 {[%clk
0:01:26.5]} 39. Ke2 {[%clk 0:00:59.4]} 39... Bb6 {[%clk 0:01:25.5]} 40. g4
{[%clk 0:00:57.3]} 40... Bd3+ {[%clk 0:01:21.4]} 41. Kf3 {[%clk 0:00:58.5]} 1-0

[Event "*** Titled Tuesday Blitz"]
[Site "Chess.com"]
[Date "2019.05.07"]
[Round "4"]
[White "DrBergerBerger"]
[Black "DenishevM"]
[Result "1-0"]
[WhiteElo "2421"]
[BlackElo "2589"]
[TimeControl "180+2"]
[EndTime "13:55:30 PDT"]
[Termination "DrBergerBerger won by resignation"]

1. e4 {[%clk 0:03:01.9]} 1... c5 {[%clk 0:02:59.5]} 2. Nc3 {[%clk 0:03:00.6]}
2... d6 {[%clk 0:02:56.5]} 3. f4 {[%clk 0:03:00.4]} 3... g6 {[%clk 0:02:52.1]}
4. Nf3 {[%clk 0:03:01.2]} 4... Bg7 {[%clk 0:02:53.2]} 5. Bb5+ {[%clk 0:03:02.6]}
5... Bd7 {[%clk 0:02:53.2]} 6. Bc4 {[%clk 0:03:03.5]} 6... Nc6 {[%clk
0:02:51.2]} 7. O-O {[%clk 0:03:04.5]} 7... Na5 {[%clk 0:02:49.2]} 8. Be2 {[%clk
0:03:04.8]} 8... Nf6 {[%clk 0:02:47.5]} 9. d3 {[%clk 0:03:05.6]} 9... O-O {[%clk
0:02:41.9]} 10. Qe1 {[%clk 0:03:04.9]} 10... b5 {[%clk 0:02:34.8]} 11. a3 {[%clk
0:02:46.2]} 11... Rc8 {[%clk 0:02:26.3]} 12. Bd2 {[%clk 0:02:38.2]} 12... b4
{[%clk 0:02:21.3]} 13. Nd1 {[%clk 0:02:32]} 13... Nc6 {[%clk 0:02:18.5]} 14.
axb4 {[%clk 0:02:29.8]} 14... Nxb4 {[%clk 0:02:17.2]} 15. Ne3 {[%clk 0:02:22.3]}
15... Ng4 {[%clk 0:02:10.1]} 16. Bd1 {[%clk 0:01:42.4]} 16... Nxe3 {[%clk
0:02:04.8]} 17. Bxe3 {[%clk 0:01:44.3]} 17... Bxb2 {[%clk 0:01:59.4]} 18. Rxa7
{[%clk 0:01:44.3]} 18... Bg7 {[%clk 0:01:53.1]} 19. f5 {[%clk 0:01:24.1]} 19...
Ra8 {[%clk 0:01:38]} 20. Rxa8 {[%clk 0:01:20.9]} 20... Qxa8 {[%clk 0:01:39.9]}
21. Qh4 {[%clk 0:01:21.3]} 21... c4 {[%clk 0:01:19.4]} 22. Qxe7 {[%clk
0:01:13.4]} 22... cxd3 {[%clk 0:01:10.1]} 23. cxd3 {[%clk 0:01:06.9]} 23... Bb5
{[%clk 0:00:55.9]} 24. f6 {[%clk 0:01:02.4]} 24... Re8 {[%clk 0:00:56.6]} 25.
Qxd6 {[%clk 0:00:55.6]} 25... Bf8 {[%clk 0:00:56]} 26. Qc7 {[%clk 0:00:40]}
26... Bxd3 {[%clk 0:00:51.5]} 27. Bb3 {[%clk 0:00:37.7]} 27... Be7 {[%clk
0:00:30.4]} 28. fxe7 {[%clk 0:00:31.4]} 28... Qxe4 {[%clk 0:00:30.6]} 29. Bxf7+
{[%clk 0:00:29.7]} 29... Kg7 {[%clk 0:00:27.5]} 30. Bd4+ {[%clk 0:00:21.6]}
30... Kh6 {[%clk 0:00:22.2]} 31. Qc1+ {[%clk 0:00:21.2]} 1-0

[Event "*** Titled Tuesday Blitz"]
[Site "Chess.com"]
[Date "2019.05.07"]
[Round "4"]
[White "stepanosinovsky"]
[Black "TheBigBadChessDad"]
[Result "1-0"]
[WhiteElo "2395"]
[BlackElo "2317"]
[TimeControl "180+2"]
[EndTime "13:55:37 PDT"]
[Termination "stepanosinovsky won by resignation"]

1. e4 {[%clk 0:03:01.9]} 1... e5 {[%clk 0:03:01]} 2. Nf3 {[%clk 0:03:02.8]} 2...
Nf6 {[%clk 0:03:02.1]} 3. Nc3 {[%clk 0:03:03.2]} 3... Nc6 {[%clk 0:03:02.5]} 4.
Bb5 {[%clk 0:03:03.2]} 4... Bb4 {[%clk 0:03:01.8]} 5. O-O {[%clk 0:03:01.8]}
5... O-O {[%clk 0:02:50.8]} 6. d3 {[%clk 0:03:01.6]} 6... Bxc3 {[%clk
0:02:51.5]} 7. bxc3 {[%clk 0:03:02.1]} 7... d6 {[%clk 0:02:51.6]} 8. h3 {[%clk
0:02:33.9]} 8... h6 {[%clk 0:02:50.3]} 9. Re1 {[%clk 0:02:32.2]} 9... Bd7 {[%clk
0:02:49.8]} 10. d4 {[%clk 0:02:21.7]} 10... Re8 {[%clk 0:02:48.1]} 11. Bd3
{[%clk 0:02:05.2]} 11... Na5 {[%clk 0:02:42.7]} 12. Rb1 {[%clk 0:01:58.3]} 12...
c5 {[%clk 0:02:39]} 13. d5 {[%clk 0:01:47.6]} 13... c4 {[%clk 0:02:25.3]} 14.
Bf1 {[%clk 0:01:47.1]} 14... b5 {[%clk 0:02:18.1]} 15. g3 {[%clk 0:01:33.5]}
15... Qc7 {[%clk 0:02:12.5]} 16. Nh4 {[%clk 0:01:33.6]} 16... Nb7 {[%clk
0:02:08.5]} 17. Qf3 {[%clk 0:01:12.5]} 17... Nh7 {[%clk 0:01:54.8]} 18. Nf5
{[%clk 0:00:56.8]} 18... Ng5 {[%clk 0:01:50.7]} 19. Qh5 {[%clk 0:00:54]} 19...
Bxf5 {[%clk 0:01:42.6]} 20. exf5 {[%clk 0:00:53.6]} 20... f6 {[%clk 0:01:42.2]}
21. h4 {[%clk 0:00:51.8]} 21... Nf7 {[%clk 0:01:31.9]} 22. Rxb5 {[%clk
0:00:44.1]} 22... Reb8 {[%clk 0:01:31.7]} 23. Re4 {[%clk 0:00:42.5]} 23... Nc5
{[%clk 0:01:29.8]} 24. Rxb8+ {[%clk 0:00:38.7]} 24... Rxb8 {[%clk 0:01:28.5]}
25. Rg4 {[%clk 0:00:35]} 25... Rb1 {[%clk 0:01:14.8]} 26. Qg6 {[%clk 0:00:21.1]}
26... Nh8 {[%clk 0:01:04.2]} 27. Qe8+ {[%clk 0:00:23]} 27... Kh7 {[%clk
0:01:04.9]} 28. Bxh6 {[%clk 0:00:23.3]} 28... g5 {[%clk 0:00:36.8]} 29. fxg6+
{[%clk 0:00:21.8]} 29... Kxh6 {[%clk 0:00:37.8]} 30. Qxh8+ {[%clk 0:00:22.9]}
1-0